[Event "Late-Titled-Tuesday-Blitz-March-19-2024"]
[Site "Chess.com"]
[Date "2024.03.19"]
[Round "7"]
[White "KaydenTroffChess"]
[Black "Yeritsyaan"]
[Result "1-0"]
[WhiteElo "2857"]
[BlackElo "2680"]
[TimeControl "180+1"]
[EndTime "15:16:34 PDT"]
[Termination "KaydenTroffChess won by checkmate"]

1. d4 {[%clk 0:03:00.9]} 1... Nf6 {[%clk 0:02:58.8]} 2. Nf3 {[%clk 0:03:00.8]}
2... g6 {[%clk 0:02:57.8]} 3. Bg5 {[%clk 0:03:00.6]} 3... Bg7 {[%clk 0:02:58]}
4. Nc3 {[%clk 0:03:01]} 4... d5 {[%clk 0:02:57.5]} 5. Bxf6 {[%clk 0:03:01]} 5...
Bxf6 {[%clk 0:02:57.4]} 6. e4 {[%clk 0:03:01.2]} 6... dxe4 {[%clk 0:02:55.9]} 7.
Nxe4 {[%clk 0:03:02.1]} 7... Bg7 {[%clk 0:02:55.8]} 8. c3 {[%clk 0:02:59.6]}
8... O-O {[%clk 0:02:55.1]} 9. Bc4 {[%clk 0:02:59.8]} 9... Nd7 {[%clk
0:02:47.5]} 10. O-O {[%clk 0:02:59.5]} 10... e5 {[%clk 0:02:44.5]} 11. dxe5
{[%clk 0:02:51.3]} 11... Nxe5 {[%clk 0:02:45.4]} 12. Nxe5 {[%clk 0:02:48.2]}
12... Bxe5 {[%clk 0:02:46.3]} 13. Qxd8 {[%clk 0:02:35.2]} 13... Rxd8 {[%clk
0:02:45.3]} 14. f4 {[%clk 0:02:07.6]} 14... Bg7 {[%clk 0:02:39.3]} 15. Ng5
{[%clk 0:02:00.2]} 15... Rf8 {[%clk 0:02:38]} 16. f5 {[%clk 0:01:39.1]} 16...
gxf5 {[%clk 0:02:13]} 17. Rae1 {[%clk 0:01:36.6]} 17... Bf6 {[%clk 0:01:59]} 18.
Ne4 {[%clk 0:01:33.3]} 18... Be7 {[%clk 0:01:52.1]} 19. Ng3 {[%clk 0:01:30.4]}
19... Bh4 {[%clk 0:01:44.3]} 20. Re3 {[%clk 0:01:23.9]} 20... Bxg3 {[%clk
0:01:39.7]} 21. Rxg3+ {[%clk 0:01:24.8]} 21... Kh8 {[%clk 0:01:40.2]} 22. Re3
{[%clk 0:01:22.1]} 22... Kg7 {[%clk 0:01:31.6]} 23. Re7 {[%clk 0:01:04]} 23...
c6 {[%clk 0:01:31.6]} 24. Rc7 {[%clk 0:00:49.9]} 24... Kf6 {[%clk 0:00:45.7]}
25. g4 {[%clk 0:00:48.5]} 25... Be6 {[%clk 0:00:29.9]} 26. Bd3 {[%clk
0:00:48.2]} 26... Rg8 {[%clk 0:00:26.8]} 27. Bxf5 {[%clk 0:00:45.6]} 27... Rad8
{[%clk 0:00:20.2]} 28. Bxh7+ {[%clk 0:00:42.8]} 28... Ke5 {[%clk 0:00:20.4]} 29.
Bxg8 {[%clk 0:00:41.8]} 29... Rxg8 {[%clk 0:00:20.2]} 30. h3 {[%clk 0:00:38.9]}
30... Re8 {[%clk 0:00:16.7]} 31. Rxb7 {[%clk 0:00:37]} 31... a5 {[%clk
0:00:17.2]} 32. Ra7 {[%clk 0:00:33.3]} 32... Rd8 {[%clk 0:00:16]} 33. Rxa5+
{[%clk 0:00:33.3]} 33... Ke4 {[%clk 0:00:16.8]} 34. Ra4+ {[%clk 0:00:32.9]}
34... Ke3 {[%clk 0:00:17.2]} 35. Rd4 {[%clk 0:00:33]} 35... Rb8 {[%clk
0:00:14.8]} 36. Re1+ {[%clk 0:00:31.1]} 36... Kf3 {[%clk 0:00:14.7]} 37. b4
{[%clk 0:00:30.5]} 37... Ra8 {[%clk 0:00:14.8]} 38. Rd2 {[%clk 0:00:29.5]} 38...
Kg3 {[%clk 0:00:14.4]} 39. Re3+ {[%clk 0:00:29.4]} 39... Kh4 {[%clk 0:00:15.1]}
40. Rdd3 {[%clk 0:00:18.7]} 40... Rxa2 {[%clk 0:00:13.6]} 41. Re5 {[%clk
0:00:19]} 41... Ra1+ {[%clk 0:00:07.7]} 42. Kf2 {[%clk 0:00:19.2]} 42... Ra2+
{[%clk 0:00:08.2]} 43. Ke1 {[%clk 0:00:19.6]} 43... Ra1+ {[%clk 0:00:07.5]} 44.
Kd2 {[%clk 0:00:19.7]} 44... Ra2+ {[%clk 0:00:05.5]} 45. Kc1 {[%clk 0:00:20.1]}
45... Ra1+ {[%clk 0:00:03.7]} 46. Kb2 {[%clk 0:00:20.3]} 46... Ra2+ {[%clk
0:00:03.9]} 47. Kb1 {[%clk 0:00:20.8]} 47... Rh2 {[%clk 0:00:01.8]} 48. Rh5#
{[%clk 0:00:20.7]} 1-0

[Event "Late-Titled-Tuesday-Blitz-March-19-2024"]
[Site "Chess.com"]
[Date "2024.03.19"]
[Round "7"]
[White "Oligan22"]
[Black "sacrifoice"]
[Result "1/2-1/2"]
[WhiteElo "2398"]
[BlackElo "2258"]
[TimeControl "180+1"]
[EndTime "15:16:44 PDT"]
[Termination "Game drawn by repetition"]

1. e4 {[%clk 0:03:00.9]} 1... c5 {[%clk 0:02:59.4]} 2. Nf3 {[%clk 0:03:00.2]}
2... d6 {[%clk 0:02:59.8]} 3. d4 {[%clk 0:02:59.9]} 3... cxd4 {[%clk 0:03:00.7]}
4. Nxd4 {[%clk 0:03:00.4]} 4... Nf6 {[%clk 0:03:01.2]} 5. Nc3 {[%clk 0:03:01.2]}
5... g6 {[%clk 0:03:01.7]} 6. f4 {[%clk 0:03:00.2]} 6... Nc6 {[%clk 0:03:01.5]}
7. Nf3 {[%clk 0:02:58.2]} 7... Bg7 {[%clk 0:03:01.1]} 8. Bd3 {[%clk 0:02:58.4]}
8... O-O {[%clk 0:03:01.1]} 9. O-O {[%clk 0:02:58.8]} 9... Bg4 {[%clk
0:02:59.4]} 10. Qe1 {[%clk 0:02:58.7]} 10... Rc8 {[%clk 0:02:55.2]} 11. Qh4
{[%clk 0:02:58.1]} 11... Bxf3 {[%clk 0:02:54.9]} 12. Rxf3 {[%clk 0:02:59]} 12...
Nb4 {[%clk 0:02:53.1]} 13. Rh3 {[%clk 0:02:55.9]} 13... Nxd3 {[%clk 0:02:52.6]}
14. cxd3 {[%clk 0:02:56.8]} 14... h5 {[%clk 0:02:41.6]} 15. Be3 {[%clk
0:02:52.9]} 15... Ng4 {[%clk 0:02:40.4]} 16. Nd5 {[%clk 0:02:40.3]} 16... Re8
{[%clk 0:02:22.6]} 17. Bxa7 {[%clk 0:02:20.3]} 17... Bxb2 {[%clk 0:02:13.1]} 18.
Rb1 {[%clk 0:02:18.2]} 18... Rc2 {[%clk 0:02:09.3]} 19. Qg5 {[%clk 0:02:01.9]}
19... e6 {[%clk 0:02:02.7]} 20. Qxd8 {[%clk 0:01:30.3]} 20... Rxd8 {[%clk
0:02:03.6]} 21. Nb4 {[%clk 0:01:31]} 21... Rd2 {[%clk 0:01:35.9]} 22. Rf3 {[%clk
0:01:30.7]} 22... Ra8 {[%clk 0:01:27.9]} 23. Bb6 {[%clk 0:01:29]} 23... Bc3
{[%clk 0:01:25.1]} 24. h3 {[%clk 0:01:15.9]} 24... Bxb4 {[%clk 0:01:16.8]} 25.
hxg4 {[%clk 0:01:10.6]} 25... hxg4 {[%clk 0:01:16.6]} 26. Rg3 {[%clk 0:01:04.6]}
26... Bc3 {[%clk 0:01:11.4]} 27. Rb3 {[%clk 0:00:50.4]} 27... Bg7 {[%clk
0:00:43.6]} 28. Rxg4 {[%clk 0:00:50.6]} 28... Raxa2 {[%clk 0:00:42.8]} 29. f5
{[%clk 0:00:50.6]} 29... Be5 {[%clk 0:00:36.2]} 30. Rb1 {[%clk 0:00:35]} 30...
exf5 {[%clk 0:00:31.3]} 31. exf5 {[%clk 0:00:34.8]} 31... Kg7 {[%clk 0:00:31.3]}
32. fxg6 {[%clk 0:00:34.5]} 32... fxg6 {[%clk 0:00:31.2]} 33. d4 {[%clk
0:00:18.7]} 33... Bf6 {[%clk 0:00:26.8]} 34. Bc7 {[%clk 0:00:18.8]} 34... Bxd4+
{[%clk 0:00:22.1]} 35. Kh1 {[%clk 0:00:19.2]} 35... Be5 {[%clk 0:00:20.6]} 36.
Bb8 {[%clk 0:00:14.8]} 36... Rab2 {[%clk 0:00:18.8]} 37. Rf1 {[%clk 0:00:14.2]}
37... b5 {[%clk 0:00:17.9]} 38. Re4 {[%clk 0:00:12.6]} 38... b4 {[%clk
0:00:16.7]} 39. Rg4 {[%clk 0:00:12.8]} 39... b3 {[%clk 0:00:16.4]} 40. Ba7
{[%clk 0:00:09.8]} 40... Rbc2 {[%clk 0:00:15.7]} 41. Be3 {[%clk 0:00:10.2]}
41... Re2 {[%clk 0:00:14.8]} 42. Bg5 {[%clk 0:00:09.6]} 42... b2 {[%clk
0:00:14.3]} 43. Rh4 {[%clk 0:00:09.5]} 43... Rxg2 {[%clk 0:00:08.4]} 44. Bh6+
{[%clk 0:00:09.5]} 44... Kg8 {[%clk 0:00:08.3]} 45. Rf8+ {[%clk 0:00:09]} 45...
Kh7 {[%clk 0:00:08.2]} 46. Bg5+ {[%clk 0:00:08.6]} 46... Kg7 {[%clk 0:00:07.7]}
47. Bh6+ {[%clk 0:00:09]} 47... Kh7 {[%clk 0:00:07.7]} 48. Bg5+ {[%clk
0:00:09.1]} 48... Kg7 {[%clk 0:00:08]} 49. Bh6+ {[%clk 0:00:09.4]} 49... Kh7
{[%clk 0:00:07.9]} 1/2-1/2

[Event "Late-Titled-Tuesday-Blitz-March-19-2024"]
[Site "Chess.com"]
[Date "2024.03.19"]
[Round "7"]
[White "kids2010"]
[Black "Harsha_Bharathakoti"]
[Result "0-1"]
[WhiteElo "2784"]
[BlackElo "2955"]
[TimeControl "180+1"]
[EndTime "15:16:46 PDT"]
[Termination "Harsha_Bharathakoti won by resignation"]

1. e4 {[%clk 0:03:00.9]} 1... c5 {[%clk 0:02:56.4]} 2. Nf3 {[%clk 0:02:59.6]}
2... d6 {[%clk 0:02:55.5]} 3. c3 {[%clk 0:02:58.8]} 3... Nf6 {[%clk 0:02:55.3]}
4. h3 {[%clk 0:02:58.4]} 4... g6 {[%clk 0:02:49.1]} 5. Bd3 {[%clk 0:02:58.3]}
5... Bg7 {[%clk 0:02:49]} 6. Bc2 {[%clk 0:02:58.4]} 6... O-O {[%clk 0:02:47.8]}
7. O-O {[%clk 0:02:58.8]} 7... b6 {[%clk 0:02:23.1]} 8. d4 {[%clk 0:02:58.8]}
8... Bb7 {[%clk 0:02:23.5]} 9. Re1 {[%clk 0:02:59.1]} 9... e6 {[%clk 0:02:20.2]}
10. Nbd2 {[%clk 0:02:52]} 10... cxd4 {[%clk 0:02:17.8]} 11. cxd4 {[%clk
0:02:51.9]} 11... Nc6 {[%clk 0:02:17.1]} 12. a3 {[%clk 0:02:39.7]} 12... Rc8
{[%clk 0:02:17.6]} 13. e5 {[%clk 0:02:28.5]} 13... dxe5 {[%clk 0:01:28.3]} 14.
dxe5 {[%clk 0:02:29.4]} 14... Nd7 {[%clk 0:01:20.9]} 15. Nc4 {[%clk 0:02:17.9]}
15... Ne7 {[%clk 0:00:52.3]} 16. Bb3 {[%clk 0:01:41.9]} 16... Bxf3 {[%clk
0:00:27.6]} 17. Qxf3 {[%clk 0:01:41.9]} 17... b5 {[%clk 0:00:27.9]} 18. Nd6
{[%clk 0:00:58.8]} 18... Nxe5 {[%clk 0:00:28.4]} 19. Qd1 {[%clk 0:00:59.5]}
19... Rc6 {[%clk 0:00:15.3]} 20. Nxb5 {[%clk 0:00:45.4]} 20... Nd3 {[%clk
0:00:15.6]} 21. Re2 {[%clk 0:00:24.4]} 21... Nxc1 {[%clk 0:00:15.9]} 22. Rxc1
{[%clk 0:00:25.3]} 22... Qb6 {[%clk 0:00:08.7]} 23. Ba4 {[%clk 0:00:20]} 23...
Rxc1 {[%clk 0:00:02.5]} 24. Qxc1 {[%clk 0:00:20.9]} 24... a6 {[%clk 0:00:02.7]}
25. Nc3 {[%clk 0:00:20.8]} 25... Rc8 {[%clk 0:00:02.5]} 26. Qg5 {[%clk
0:00:18.8]} 26... Bxc3 {[%clk 0:00:01.3]} 27. Qxe7 {[%clk 0:00:18.7]} 27... Bd4
{[%clk 0:00:01.9]} 28. Be8 {[%clk 0:00:17.4]} 28... Rc7 {[%clk 0:00:01.6]} 29.
Qh4 {[%clk 0:00:07.1]} 29... Kg7 {[%clk 0:00:02.1]} 30. Rd2 {[%clk 0:00:06.7]}
30... Rc1+ {[%clk 0:00:02.3]} 31. Kh2 {[%clk 0:00:07]} 31... Bf6 {[%clk
0:00:03.1]} 32. Qf4 {[%clk 0:00:07.1]} 32... Qc7 {[%clk 0:00:02]} 33. Qxc7
{[%clk 0:00:06.7]} 33... Rxc7 {[%clk 0:00:02.2]} 34. Rd7 {[%clk 0:00:07.6]}
34... Rxd7 {[%clk 0:00:02.8]} 35. Bxd7 {[%clk 0:00:08.5]} 35... Bxb2 {[%clk
0:00:03.4]} 36. a4 {[%clk 0:00:08.7]} 36... Bd4 {[%clk 0:00:04.1]} 37. Bc8
{[%clk 0:00:09.2]} 37... Bxf2 {[%clk 0:00:03.9]} 38. Bxa6 {[%clk 0:00:09.6]}
38... Bb6 {[%clk 0:00:04.7]} 39. Bb5 {[%clk 0:00:10.2]} 39... f5 {[%clk
0:00:05.1]} 40. g3 {[%clk 0:00:10.5]} 40... Kf6 {[%clk 0:00:05.4]} 41. Kg2
{[%clk 0:00:11.1]} 41... e5 {[%clk 0:00:05.9]} 42. g4 {[%clk 0:00:11.4]} 42...
e4 {[%clk 0:00:05.9]} 43. Kg3 {[%clk 0:00:07.5]} 43... h6 {[%clk 0:00:03.9]} 44.
Be8 {[%clk 0:00:06.9]} 44... Bc7+ {[%clk 0:00:03.1]} 45. Kg2 {[%clk 0:00:07.4]}
45... f4 {[%clk 0:00:03.7]} 46. Bc6 {[%clk 0:00:07.1]} 46... Ke5 {[%clk
0:00:03.8]} 47. Be8 {[%clk 0:00:07.7]} 47... f3+ {[%clk 0:00:03.3]} 48. Kf2
{[%clk 0:00:05.9]} 48... Kf4 {[%clk 0:00:03]} 49. Bxg6 {[%clk 0:00:02.4]} 49...
e3+ {[%clk 0:00:03.6]} 50. Ke1 {[%clk 0:00:03.3]} 50... Ba5+ {[%clk 0:00:04]}
51. Kd1 {[%clk 0:00:03.1]} 51... e2+ {[%clk 0:00:04.9]} 52. Kc2 {[%clk
0:00:03.9]} 52... e1=Q {[%clk 0:00:05.8]} 0-1

[Event "Late-Titled-Tuesday-Blitz-March-19-2024"]
[Site "Chess.com"]
[Date "2024.03.19"]
[Round "7"]
[White "Charodej1"]
[Black "Pingah9"]
[Result "0-1"]
[WhiteElo "2384"]
[BlackElo "2581"]
[TimeControl "180+1"]
[EndTime "15:16:48 PDT"]
[Termination "Pingah9 won by resignation"]

1. d4 {[%clk 0:03:00.9]} 1... g6 {[%clk 0:02:59.6]} 2. c4 {[%clk 0:02:58.9]}
2... Bg7 {[%clk 0:02:59.5]} 3. Nc3 {[%clk 0:02:59.5]} 3... c5 {[%clk 0:02:59.4]}
4. e3 {[%clk 0:02:55]} 4... Nf6 {[%clk 0:02:58.4]} 5. Nf3 {[%clk 0:02:55]} 5...
O-O {[%clk 0:02:58.6]} 6. Be2 {[%clk 0:02:55.2]} 6... d5 {[%clk 0:02:58.8]} 7.
dxc5 {[%clk 0:02:53.8]} 7... Qa5 {[%clk 0:02:58.3]} 8. O-O {[%clk 0:02:52.5]}
8... dxc4 {[%clk 0:02:58.1]} 9. Qa4 {[%clk 0:02:39.7]} 9... Qxc5 {[%clk
0:02:55.7]} 10. Qxc4 {[%clk 0:02:39.5]} 10... Qa5 {[%clk 0:02:51.7]} 11. b4
{[%clk 0:02:32.1]} 11... Qh5 {[%clk 0:02:32.9]} 12. Nd4 {[%clk 0:02:19]} 12...
Bg4 {[%clk 0:02:08.2]} 13. f3 {[%clk 0:02:17]} 13... Bd7 {[%clk 0:02:04.9]} 14.
Qb3 {[%clk 0:01:59]} 14... e5 {[%clk 0:01:39.2]} 15. Ndb5 {[%clk 0:01:57.1]}
15... Nc6 {[%clk 0:01:36.4]} 16. Bd2 {[%clk 0:01:36.5]} 16... a6 {[%clk
0:01:32.1]} 17. Nd6 {[%clk 0:01:33]} 17... Rab8 {[%clk 0:01:22.6]} 18. Rad1
{[%clk 0:01:28.5]} 18... Be6 {[%clk 0:01:04.7]} 19. Qb2 {[%clk 0:01:25.3]} 19...
Rfd8 {[%clk 0:01:01.8]} 20. Nde4 {[%clk 0:01:18.2]} 20... Nd5 {[%clk 0:00:50.3]}
21. Nxd5 {[%clk 0:00:56.6]} 21... Bxd5 {[%clk 0:00:51.2]} 22. Nc5 {[%clk
0:00:42.1]} 22... e4 {[%clk 0:00:49]} 23. Bc3 {[%clk 0:00:21.5]} 23... Bxc3
{[%clk 0:00:42.9]} 24. Qxc3 {[%clk 0:00:22.4]} 24... exf3 {[%clk 0:00:43.2]} 25.
gxf3 {[%clk 0:00:19.8]} 25... Qg5+ {[%clk 0:00:32.8]} 26. Kf2 {[%clk 0:00:19.1]}
26... Qh4+ {[%clk 0:00:27.9]} 27. Kg2 {[%clk 0:00:16.9]} 27... Qxb4 {[%clk
0:00:23.3]} 28. Qxb4 {[%clk 0:00:11.6]} 28... Nxb4 {[%clk 0:00:24.2]} 29. a3
{[%clk 0:00:11.9]} 29... Nc2 {[%clk 0:00:22.5]} 30. Kf2 {[%clk 0:00:12.1]} 30...
Nxa3 {[%clk 0:00:22.1]} 31. e4 {[%clk 0:00:12.3]} 31... Bc6 {[%clk 0:00:20.4]}
32. Ra1 {[%clk 0:00:10.6]} 32... Nc2 {[%clk 0:00:18.8]} 33. Rac1 {[%clk
0:00:09.9]} 33... Nd4 {[%clk 0:00:19]} 34. Bc4 {[%clk 0:00:10]} 34... Kg7 {[%clk
0:00:15.6]} 35. Ke3 {[%clk 0:00:10.3]} 35... Nb5 {[%clk 0:00:14.2]} 36. h4
{[%clk 0:00:08]} 36... h5 {[%clk 0:00:13.9]} 37. Rg1 {[%clk 0:00:07.9]} 37...
Nd6 {[%clk 0:00:12.9]} 38. Bd3 {[%clk 0:00:07.7]} 38... Re8 {[%clk 0:00:12.3]}
39. Kd2 {[%clk 0:00:06.4]} 39... Rbd8 {[%clk 0:00:11.9]} 40. Kc3 {[%clk
0:00:06.2]} 40... Nb5+ {[%clk 0:00:11.8]} 41. Kc2 {[%clk 0:00:05]} 41... Nd4+
{[%clk 0:00:11.6]} 42. Kc3 {[%clk 0:00:05.6]} 42... Nxf3 {[%clk 0:00:12]} 43.
Rh1 {[%clk 0:00:05.1]} 43... Ne5 {[%clk 0:00:11.3]} 44. Bc2 {[%clk 0:00:04.6]}
44... Rc8 {[%clk 0:00:08.4]} 45. Kb4 {[%clk 0:00:04.6]} 45... Re7 {[%clk
0:00:06.8]} 46. Rhg1 {[%clk 0:00:04.6]} 46... Nd7 {[%clk 0:00:07.1]} 47. Nb3
{[%clk 0:00:03]} 47... b6 {[%clk 0:00:07.5]} 48. Bd3 {[%clk 0:00:03]} 48... a5+
{[%clk 0:00:07.7]} 49. Ka3 {[%clk 0:00:03.2]} 49... Ne5 {[%clk 0:00:08.1]} 50.
Be2 {[%clk 0:00:02.6]} 50... Rec7 {[%clk 0:00:07.7]} 51. Nd4 {[%clk 0:00:03.1]}
51... Bxe4 {[%clk 0:00:07.6]} 0-1

[Event "Late-Titled-Tuesday-Blitz-March-19-2024"]
[Site "Chess.com"]
[Date "2024.03.19"]
[Round "7"]
[White "Godzillator"]
[Black "ExtremeLearner"]
[Result "0-1"]
[WhiteElo "2400"]
[BlackElo "2549"]
[TimeControl "180+1"]
[EndTime "15:16:48 PDT"]
[Termination "ExtremeLearner won by resignation"]

1. Nf3 {[%clk 0:02:59.7]} 1... g6 {[%clk 0:02:05.2]} 2. c3 {[%clk 0:02:58.8]}
2... Bg7 {[%clk 0:02:04.3]} 3. d4 {[%clk 0:02:59]} 3... Nf6 {[%clk 0:02:01.9]}
4. Bf4 {[%clk 0:02:58.2]} 4... d6 {[%clk 0:01:45.1]} 5. h3 {[%clk 0:02:58.3]}
5... O-O {[%clk 0:01:42.7]} 6. Nbd2 {[%clk 0:02:57.8]} 6... Nbd7 {[%clk
0:01:42.7]} 7. Bh2 {[%clk 0:02:57.3]} 7... c5 {[%clk 0:01:42.6]} 8. e4 {[%clk
0:02:54.4]} 8... cxd4 {[%clk 0:01:41.7]} 9. cxd4 {[%clk 0:02:54]} 9... e5 {[%clk
0:01:40.7]} 10. d5 {[%clk 0:02:53]} 10... Nc5 {[%clk 0:01:38]} 11. Qc2 {[%clk
0:02:45.3]} 11... Bd7 {[%clk 0:01:29.3]} 12. b4 {[%clk 0:02:44.5]} 12... Na4
{[%clk 0:01:24.9]} 13. Nc4 {[%clk 0:02:27.8]} 13... Rc8 {[%clk 0:01:20.3]} 14.
Qd3 {[%clk 0:02:06.5]} 14... Bb5 {[%clk 0:01:18.8]} 15. Nfd2 {[%clk 0:02:01.6]}
15... Nb2 {[%clk 0:01:13.7]} 16. Qb3 {[%clk 0:02:01.7]} 16... Nxc4 {[%clk
0:01:12.1]} 17. Bxc4 {[%clk 0:02:01.5]} 17... Bxc4 {[%clk 0:01:12.2]} 18. Nxc4
{[%clk 0:02:01.7]} 18... Nxe4 {[%clk 0:01:12.4]} 19. O-O {[%clk 0:02:00.5]}
19... Rxc4 {[%clk 0:01:09.1]} 20. Qxc4 {[%clk 0:01:59.7]} 20... Nd2 {[%clk
0:01:09.5]} 21. Qb5 {[%clk 0:01:58.7]} 21... Nxf1 {[%clk 0:01:10]} 22. Rxf1
{[%clk 0:01:58.5]} 22... Qc7 {[%clk 0:01:09.7]} 23. f3 {[%clk 0:01:44.5]} 23...
f5 {[%clk 0:01:09.4]} 24. Kh1 {[%clk 0:01:44.2]} 24... a6 {[%clk 0:01:08.5]} 25.
Qd3 {[%clk 0:01:41.5]} 25... Rc8 {[%clk 0:01:08.2]} 26. Bg1 {[%clk 0:01:37.3]}
26... Qc4 {[%clk 0:01:08.1]} 27. Qxc4 {[%clk 0:01:36.1]} 27... Rxc4 {[%clk
0:01:09]} 28. Rb1 {[%clk 0:01:35.1]} 28... b5 {[%clk 0:01:04.9]} 29. Ba7 {[%clk
0:01:31.4]} 29... Kf7 {[%clk 0:01:03.6]} 30. g4 {[%clk 0:01:24.6]} 30... Bh6
{[%clk 0:01:02.9]} 31. Bb8 {[%clk 0:01:22.8]} 31... Ke7 {[%clk 0:01:03]} 32. Ba7
{[%clk 0:01:17.9]} 32... Bd2 {[%clk 0:00:52.1]} 33. a3 {[%clk 0:01:16.8]} 33...
Rc3 {[%clk 0:00:51]} 34. Kg2 {[%clk 0:01:09.7]} 34... Rxa3 {[%clk 0:00:49.8]}
35. Rb2 {[%clk 0:01:10]} 35... Bc3 {[%clk 0:00:49.7]} 36. Rc2 {[%clk 0:01:08.8]}
36... Kd7 {[%clk 0:00:47.3]} 37. gxf5 {[%clk 0:01:08.3]} 37... gxf5 {[%clk
0:00:47.5]} 38. Kg3 {[%clk 0:01:08.7]} 38... Be1+ {[%clk 0:00:43.7]} 39. Kg2
{[%clk 0:01:04.9]} 39... Bxb4 {[%clk 0:00:40.8]} 40. Rc6 {[%clk 0:01:05]} 40...
f4 {[%clk 0:00:38.3]} 41. Bb6 {[%clk 0:01:04.4]} 41... Ra2+ {[%clk 0:00:36.7]}
42. Kf1 {[%clk 0:01:02.9]} 42... Rd2 {[%clk 0:00:32.9]} 43. Rc7+ {[%clk
0:01:03]} 43... Ke8 {[%clk 0:00:33.3]} 44. Rxh7 {[%clk 0:01:01.3]} 44... Rxd5
{[%clk 0:00:33.2]} 45. Ra7 {[%clk 0:01:00.9]} 45... Bc5 {[%clk 0:00:32.4]} 46.
Rxa6 {[%clk 0:00:59.7]} 46... Bxb6 {[%clk 0:00:32.1]} 47. Rxb6 {[%clk 0:01:00]}
47... Kf7 {[%clk 0:00:32.2]} 48. h4 {[%clk 0:00:58.1]} 48... Kg6 {[%clk
0:00:32.8]} 49. Kg2 {[%clk 0:00:58.4]} 49... Kh5 {[%clk 0:00:32.3]} 50. Kh3
{[%clk 0:00:57.3]} 50... Rd3 {[%clk 0:00:31.9]} 51. Kg2 {[%clk 0:00:55.9]} 51...
Kxh4 {[%clk 0:00:28.6]} 52. Rxb5 {[%clk 0:00:55.7]} 52... Rd2+ {[%clk
0:00:29.3]} 53. Kf1 {[%clk 0:00:55.5]} 53... Kg3 {[%clk 0:00:30.2]} 54. Ke1
{[%clk 0:00:53.9]} 54... Ra2 {[%clk 0:00:26.7]} 55. Rd5 {[%clk 0:00:52.2]} 55...
Kxf3 {[%clk 0:00:26.6]} 56. Rxd6 {[%clk 0:00:52.7]} 56... e4 {[%clk 0:00:27.2]}
57. Rh6 {[%clk 0:00:48]} 57... e3 {[%clk 0:00:25.6]} 58. Rh3+ {[%clk 0:00:47.8]}
58... Ke4 {[%clk 0:00:25.5]} 59. Rh7 {[%clk 0:00:47.5]} 59... Rb2 {[%clk
0:00:20.3]} 60. Rh8 {[%clk 0:00:46.6]} 60... f3 {[%clk 0:00:15.6]} 61. Re8+
{[%clk 0:00:46.4]} 61... Kf4 {[%clk 0:00:16.3]} 62. Rf8+ {[%clk 0:00:46.6]}
62... Kg4 {[%clk 0:00:17.1]} 63. Rg8+ {[%clk 0:00:46.9]} 63... Kh5 {[%clk
0:00:17.8]} 64. Rh8+ {[%clk 0:00:47.3]} 64... Kg6 {[%clk 0:00:18.5]} 65. Rg8+
{[%clk 0:00:47.2]} 65... Kf7 {[%clk 0:00:18]} 66. Rb8 {[%clk 0:00:44.4]} 66...
f2+ {[%clk 0:00:18.1]} 67. Kf1 {[%clk 0:00:43.9]} 67... Rxb8 {[%clk 0:00:16.8]}
0-1

[Event "Late-Titled-Tuesday-Blitz-March-19-2024"]
[Site "Chess.com"]
[Date "2024.03.19"]
[Round "7"]
[White "AsterPhoenix"]
[Black "Evgeny81"]
[Result "1-0"]
[WhiteElo "2663"]
[BlackElo "2772"]
[TimeControl "180+1"]
[EndTime "15:16:49 PDT"]
[Termination "AsterPhoenix won by resignation"]

1. e4 {[%clk 0:03:00.9]} 1... c5 {[%clk 0:02:39.6]} 2. Nf3 {[%clk 0:03:00.5]}
2... d6 {[%clk 0:02:38.6]} 3. d4 {[%clk 0:03:00.3]} 3... cxd4 {[%clk 0:02:38.3]}
4. Nxd4 {[%clk 0:03:01.2]} 4... Nf6 {[%clk 0:02:38.7]} 5. Nc3 {[%clk 0:03:01.7]}
5... a6 {[%clk 0:02:39.1]} 6. Be2 {[%clk 0:03:01.9]} 6... e6 {[%clk 0:02:39.1]}
7. O-O {[%clk 0:02:57.4]} 7... Be7 {[%clk 0:02:39.6]} 8. Be3 {[%clk 0:02:55.2]}
8... Nc6 {[%clk 0:02:39.3]} 9. f4 {[%clk 0:02:52.8]} 9... Qc7 {[%clk 0:02:39.6]}
10. a4 {[%clk 0:02:41.9]} 10... O-O {[%clk 0:02:39.1]} 11. Kh1 {[%clk
0:02:41.8]} 11... Na5 {[%clk 0:02:34.8]} 12. Qd3 {[%clk 0:02:33.9]} 12... Bd7
{[%clk 0:02:29.2]} 13. Nb3 {[%clk 0:02:14]} 13... Nxb3 {[%clk 0:02:21.5]} 14.
cxb3 {[%clk 0:02:14.2]} 14... Bc6 {[%clk 0:02:21]} 15. b4 {[%clk 0:02:00.5]}
15... d5 {[%clk 0:02:10]} 16. e5 {[%clk 0:01:56.7]} 16... Ne4 {[%clk 0:02:09.3]}
17. b5 {[%clk 0:01:41.6]} 17... axb5 {[%clk 0:02:05.2]} 18. axb5 {[%clk
0:01:41.4]} 18... Rxa1 {[%clk 0:02:05.4]} 19. Rxa1 {[%clk 0:01:41.6]} 19... Bd7
{[%clk 0:01:48.4]} 20. Nxe4 {[%clk 0:01:41.6]} 20... dxe4 {[%clk 0:01:48.9]} 21.
Qxe4 {[%clk 0:01:41.8]} 21... Rc8 {[%clk 0:01:42.2]} 22. h3 {[%clk 0:01:37.5]}
22... b6 {[%clk 0:01:35.9]} 23. Rc1 {[%clk 0:01:31]} 23... Qd8 {[%clk
0:01:33.5]} 24. Rxc8 {[%clk 0:01:28]} 24... Qxc8 {[%clk 0:01:29.7]} 25. Bxb6
{[%clk 0:01:23.9]} 25... Qc1+ {[%clk 0:01:27]} 26. Kh2 {[%clk 0:01:21.9]} 26...
g6 {[%clk 0:01:23.9]} 27. Bd4 {[%clk 0:01:06.8]} 27... Qe1 {[%clk 0:01:06.6]}
28. b6 {[%clk 0:01:04.6]} 28... Bh4 {[%clk 0:01:01.9]} 29. Qe3 {[%clk
0:01:03.6]} 29... Bc6 {[%clk 0:00:54.4]} 30. Ba6 {[%clk 0:00:55.2]} 30... Qb4
{[%clk 0:00:28.6]} 31. Qc3 {[%clk 0:00:53.8]} 31... Qa4 {[%clk 0:00:16]} 32. b7
{[%clk 0:00:52.9]} 32... Bxb7 {[%clk 0:00:16]} 33. Bxb7 {[%clk 0:00:53.8]} 33...
Qd1 {[%clk 0:00:14.4]} 34. Bf3 {[%clk 0:00:49.5]} 34... Qf1 {[%clk 0:00:13.4]}
35. b4 {[%clk 0:00:32.6]} 35... h5 {[%clk 0:00:13.6]} 36. Qd2 {[%clk 0:00:23.2]}
36... Be1 {[%clk 0:00:08.8]} 37. Qe2 {[%clk 0:00:21.4]} 37... Qxe2 {[%clk
0:00:09]} 38. Bxe2 {[%clk 0:00:21.5]} 38... Bxb4 {[%clk 0:00:09.9]} 39. g4
{[%clk 0:00:18.7]} 39... hxg4 {[%clk 0:00:09.7]} 40. hxg4 {[%clk 0:00:19.6]}
40... Kg7 {[%clk 0:00:09.6]} 41. Kg3 {[%clk 0:00:20.2]} 41... Be1+ {[%clk
0:00:09.2]} 42. Kf3 {[%clk 0:00:20.6]} 42... Bd2 {[%clk 0:00:10.1]} 43. Bc5
{[%clk 0:00:20.5]} 43... Bc1 {[%clk 0:00:09.9]} 44. Be7 {[%clk 0:00:20.5]} 44...
Bb2 {[%clk 0:00:08.2]} 45. Bg5 {[%clk 0:00:20.3]} 45... Bc3 {[%clk 0:00:07.4]}
46. Ke4 {[%clk 0:00:20.6]} 46... Kf8 {[%clk 0:00:07.6]} 47. Kd3 {[%clk
0:00:19.6]} 47... Bb2 {[%clk 0:00:07.7]} 48. Kc4 {[%clk 0:00:19.9]} 48... Bc1
{[%clk 0:00:07.9]} 49. Kc5 {[%clk 0:00:18.9]} 49... Be3+ {[%clk 0:00:07.9]} 50.
Kd6 {[%clk 0:00:18.3]} 50... Bc1 {[%clk 0:00:07.3]} 51. Kd7 {[%clk 0:00:18.6]}
51... Ba3 {[%clk 0:00:06.5]} 52. Bc4 {[%clk 0:00:17.8]} 52... Bb4 {[%clk
0:00:05.5]} 53. Bb3 {[%clk 0:00:16.1]} 53... Ba3 {[%clk 0:00:05.7]} 54. Ba2
{[%clk 0:00:16.7]} 54... Bb4 {[%clk 0:00:05.9]} 55. Bxe6 {[%clk 0:00:17.3]}
55... fxe6 {[%clk 0:00:05.9]} 56. Kxe6 {[%clk 0:00:18.2]} 56... Bd2 {[%clk
0:00:05]} 57. Kf6 {[%clk 0:00:17.9]} 1-0